bitfinex/quotes_SOLUSD_20251208
["timestamp","ask_amount","ask_price","bid_price","bid_amount"]
[1765171670608,0.68,135.14,135.12,0.72]
[1765171670810,0.68,135.14,135.11,7.40116142]
[1765171671105,3.33026615,135.14,135.1,8.07180113]
[1765171671484,0.69,135.13,135.1,8.07180113]
[1765171674408,0.69,135.13,135.1,7.40180113]
[1765171674612,0.69,135.13,135.11,0.67]
[1765171675309,0.69,135.13,135.1,7.40180113]
[1765171675611,3.34026615,135.13,135.1,0.67]
[1765171675908,8.85,135.15,135.11,8.07129767]
[1765171676414,8.85,135.15,135.11,7.40129767]
[1765171676590,8.85,135.15,135.11,8.07129767]
[1765171676910,8.16,135.15,135.12,0.67]
[1765171677113,0.69,135.14,135.12,0.67]
[1765171679411,0.69,135.14,135.11,7.40129767]
[1765171679615,3.34026615,135.14,135.11,8.07129767]
[1765171680319,0.69,135.14,135.11,7.40129767]
[1765171680488,3.34026615,135.14,135.11,8.07129767]
[1765171680684,2.65026615,135.13,135.09,70.27211955]
[1765171680889,3.37026615,135.13,135.09,70.27211955]
[1765171681090,3.37026615,135.13,135.1,0.67]
[1765171682011,2.65026615,135.13,135.1,0.67]
[1765171682208,3.37026615,135.13,135.1,0.67]
[1765171683088,0.72,135.12,135.09,70.27211955]
[1765171683289,0.72,135.12,135.1,0.67]
[1765171683997,10.77069319,135.13,135.1,0.67]
[1765171684210,10.77069319,135.13,135.1,8.07192102]
[1765171684922,18.93069319,135.13,135.1,8.07192102]
[1765171690024,18.93069319,135.13,135.1,0.67]
[1765171692398,0.72,135.12,135.1,0.67]
[1765171692919,18.21069319,135.13,135.1,0.67]
[1765171693117,18.93069319,135.13,135.1,0.67]
[1765171695626,2.65026615,135.14,135.1,8.07186953]
[1765171695805,7.3997005,135.15,135.1,10.72213568]
[1765171695806,18.92996665,135.15,135.1,10.72213568]
[1765171696002,16.2797005,135.15,135.11,0.67]
[1765171696202,18.92996665,135.15,135.11,0.67]
[1765171696625,0.72,135.14,135.11,8.07101183]
[1765171697633,0.72,135.14,135.12,0.67]
[1765171697931,0.72,135.14,135.11,8.07101183]
[1765171699119,0.72,135.14,135.12,0.67]
[1765171699324,0.72,135.14,135.11,8.07101183]
[1765171701038,0.72,135.14,135.11,8.09101183]
[1765171702638,0.72,135.14,135.12,0.69]
[1765171702840,0.72,135.14,135.11,8.09101183]
[1765171703341,0.72,135.14,135.11,7.40101183]
[1765171703519,0.72,135.14,135.12,0.69]
[1765171708347,18.20996665,135.15,135.12,0.69]
[1765171708553,18.90996665,135.15,135.12,0.69]
[1765171708734,0.7,135.14,135.12,0.69]
[1765171709747,18.90996665,135.15,135.12,0.69]
[1765171712448,2.65026615,135.14,135.12,0.69]
[1765171712748,10.75022175,135.14,135.12,0.69]
[1765171713249,8.0999556,135.14,135.12,0.69]
[1765171714354,8.0999556,135.14,135.11,0.69]
[1765171721346,7.3999556,135.14,135.11,8.09133472]
[1765171721659,8.0999556,135.14,135.11,8.09133472]
[1765171721835,8.0999556,135.14,135.12,0.69]
[1765171723258,15.53918608,135.15,135.12,0.69]
[1765171723964,16.23918608,135.15,135.12,0.69]
[1765171727959,23.6405208,135.15,135.12,0.69]
[1765171729831,0.7,135.14,135.12,0.69]
[1765171730361,8.09994708,135.14,135.12,0.69]
[1765171730863,7.39994708,135.14,135.1,15.49300136]
[1765171731058,8.08994708,135.14,135.11,0.69]
[1765171735845,7.39994708,135.14,135.11,0.69]
[1765171738156,7.39994708,135.14,135.11,8.09136429]
[1765171738356,7.39994708,135.14,135.12,0.72]
[1765171743072,8.07994708,135.14,135.12,0.72]
[1765171745877,8.07994708,135.14,135.1,14.803004]
[1765171745878,0.68,135.13,135.1,7.40133472]
[1765171746052,0.68,135.13,135.09,70.32225706]
[1765171746254,0.68,135.13,135.09,91.82694869]
[1765171746453,0.68,135.13,135.1,0.72]
[1765171746863,0.68,135.13,135.09,91.82694869]
[1765171746864,4.14252609,135.12,135.09,62.2]
[1765171747062,0.68,135.11,135.09,62.92]
[1765171747282,0.68,135.11,135.09,0.72]
[1765171747577,0.68,135.11,135.07,85.14633821]
[1765171747773,8.08172902,135.11,135.08,0.72]
[1765171748083,12.22425511,135.11,135.08,0.72]
[1765171748962,8.08172902,135.11,135.08,0.72]
[1765171749280,16.22172902,135.11,135.08,0.72]
[1765171752878,0.68,135.1,135.06,17.028864]
[1765171753055,4.14252609,135.09,135.05,7.40411957]
[1765171753261,4.14252609,135.09,135.06,0.72]
[1765171753471,0.68,135.08,135.05,7.40411957]
[1765171753675,0.68,135.08,135.06,0.72]
[1765171754579,33.38505218,135.09,135.06,0.72]
[1765171755271,40.78788856,135.09,135.06,0.72]
[1765171756772,16.22283638,135.09,135.06,0.72]
[1765171758883,27.76997966,135.09,135.06,0.72]
[1765171759186,16.22283638,135.09,135.06,0.72]
[1765171759764,16.308864,135.06,135.04,7.40461719]
[1765171759984,8.14,135.05,135.04,0.72]
[1765171760189,10.34109479,135.05,135.04,0.72]
[1765171763272,7.40464164,135.06,135.04,0.72]
[1765171763625,20.36716773,135.06,135.04,0.72]
[1765171763892,12.96252609,135.06,135.04,0.72]
[1765171764390,20.3666625,135.06,135.04,0.72]
[1765171764692,15.5437598,135.07,135.04,0.72]
[1765171764868,22.94947461,135.07,135.04,0.72]
[1765171766996,14.80947461,135.07,135.04,0.72]
[1765171767994,7.40322283,135.08,135.04,12.26766118]
[1765171768191,15.56322283,135.08,135.04,12.26766118]
[1765171768496,15.56322283,135.08,135.05,0.72]
[1765171770197,16.22322283,135.08,135.05,0.72]
[1765171771696,20.36574892,135.08,135.05,0.72]
[1765171772071,34.43867588,135.08,135.05,0.72]
[1765171772272,42.59867588,135.08,135.05,0.72]
[1765171774592,4.80252609,135.07,135.03,70.32560101]
[1765171774775,4.80252609,135.07,135.03,69.60560101]
[1765171774975,27.03710085,135.07,135.04,0.72]
[1765171775688,34.44094411,135.07,135.04,0.72]
[1765171776499,30.29841802,135.07,135.04,0.72]
[1765171776686,8.06384326,135.07,135.04,0.72]
[1765171778087,0.66,135.06,135.04,0.72]
[1765171778283,34.44094411,135.07,135.04,0.72]
[1765171782706,32.95296743,135.07,135.04,0.72]
[1765171783089,0.66,135.06,135.04,0.72]
[1765171783806,32.95296743,135.07,135.04,0.72]
[1765171783981,41.11296743,135.07,135.04,0.72]
[1765171784480,0.66,135.06,135.04,0.72]
[1765171784680,8.82,135.06,135.04,0.72]
[1765171787509,18.87839267,135.07,135.04,0.72]
[1765171787686,37.38594375,135.07,135.04,0.72]
[1765171792814,36.72594375,135.07,135.04,0.72]
[1765171793114,0.66,135.06,135.04,0.72]
[1765171793719,37.38594375,135.07,135.04,0.72]
[1765171794997,34.07139434,135.07,135.04,0.72]
[1765171795198,34.73139434,135.07,135.04,0.72]
[1765171795394,34.73139434,135.07,135.04,8.12516977]
[1765171795705,8.82,135.07,135.04,8.12516977]
[1765171795904,8.82,135.07,135.05,0.67]
[1765171796512,8.16,135.07,135.05,0.67]
[1765171797621,8.88,135.07,135.05,0.67]
[1765171798019,32.2923844,135.08,135.05,0.67]
[1765171798319,8.16,135.07,135.05,0.67]
[1765171798495,8.88,135.07,135.05,0.67]
[1765171798815,8.16,135.07,135.05,0.67]
[1765171800096,8.88,135.07,135.05,0.67]
[1765171800922,8.16,135.07,135.05,8.07445093]
[1765171801147,8.16,135.07,135.06,0.71]
[1765171801325,8.16,135.08,135.06,0.71]
[1765171801825,0.72,135.11,135.06,3.36454941]
[1765171802015,8.88,135.11,135.06,3.36454941]
[1765171802202,16.28157416,135.11,135.07,8.11356852]
[1765171802401,18.93612357,135.11,135.07,8.11356852]
[1765171802612,0.72,135.1,135.08,0.71]
[1765171803615,3.37454941,135.1,135.07,0.71]
[1765171808525,18.21612357,135.11,135.07,8.11324081]
[1765171808733,15.56157416,135.11,135.07,10.76779022]
[1765171808914,15.56157416,135.11,135.08,0.71]
[1765171809314,16.28157416,135.11,135.08,0.71]
[1765171809625,15.56157416,135.11,135.08,0.71]
[1765171810016,16.28157416,135.11,135.08,0.71]
[1765171810915,15.56157416,135.11,135.08,0.71]
[1765171811230,16.28157416,135.11,135.08,0.71]
[1765171814527,18.93612357,135.11,135.08,0.71]
[1765171814838,0.72,135.1,135.07,7.40324081]
[1765171815010,8.12207621,135.1,135.07,8.11324081]
[1765171815638,8.12207621,135.1,135.08,0.71]
[1765171815933,15.56160717,135.11,135.08,0.71]
[1765171816109,8.88,135.11,135.08,0.71]
[1765171816828,8.16,135.11,135.08,0.71]
[1765171817011,8.16,135.11,135.08,8.11296146]
[1765171817336,8.88,135.11,135.08,8.11296146]
[1765171817632,8.88,135.11,135.09,0.71]
[1765171818128,10.05575213,135.12,135.09,0.71]
[1765171818335,8.14,135.11,135.09,0.71]
[1765171819601,8.86,135.11,135.09,0.71]
[1765171819807,3.37454941,135.1,135.07,7.40340486]
[1765171820024,0.72,135.1,135.08,0.71]
[1765171820439,18.19599629,135.11,135.08,0.71]
[1765171820629,8.14,135.11,135.08,8.11300263]
[1765171820937,8.14,135.11,135.09,7.40221624]
[1765171821114,8.14,135.11,135.09,8.06221624]
[1765171821314,8.14,135.11,135.1,0.66]
[1765171822643,10.76494443,135.13,135.1,0.66]
[1765171822821,18.90494443,135.13,135.1,0.66]
[1765171823022,16.25039502,135.13,135.1,0.66]
[1765171824046,18.90494443,135.13,135.1,0.66]
[1765171824350,16.25039502,135.13,135.1,0.66]
[1765171824538,18.90494443,135.13,135.1,0.66]
[1765171824749,0.71,135.12,135.1,0.66]
[1765171826548,18.90494443,135.13,135.1,0.66]
[1765171826748,0.71,135.15,135.1,10.71606089]
[1765171826933,3.36454941,135.16,135.11,2.65454941]
[1765171827127,0.71,135.15,135.11,0.66]
[1765171827335,0.71,135.15,135.12,0.66]
[1765171827648,8.10940367,135.15,135.12,0.66]
[1765171828845,7.39940367,135.15,135.12,0.66]
[1765171829219,8.10940367,135.15,135.12,0.66]
[1765171832955,22.22304529,135.16,135.13,2.65454941]
[1765171833247,0.71,135.18,135.14,2.65454941]
[1765171833425,10.76230874,135.18,135.13,19.16481125]
[1765171833627,2.65454941,135.17,135.13,19.16481125]
[1765171833842,3.36454941,135.17,135.13,18.50481125]
[1765171834040,3.36454941,135.17,135.14,0.66]
[1765171836330,3.36454941,135.17,135.14,8.05971218]
[1765171836760,0.71,135.16,135.14,8.05971218]
[1765171836949,3.36454941,135.17,135.14,8.05971218]
[1765171837267,3.36454941,135.16,135.11,10.79454941]
[1765171837468,3.36454941,135.16,135.13,0.66]
[1765171838568,0.71,135.16,135.13,0.66]
[1765171838869,0.71,135.16,135.13,8.060247]
[1765171839038,0.71,135.16,135.14,0.66]
[1765171840662,3.36454941,135.16,135.13,7.400247]
[1765171840844,3.36454941,135.16,135.13,8.060247]
[1765171841531,3.36454941,135.16,135.14,0.66]
[1765171841532,0.71,135.16,135.14,0.66]
[1765171842145,10.76321138,135.16,135.13,7.400247]
[1765171842348,2.65454941,135.15,135.11,69.60115103]
[1765171842553,2.65454941,135.13,135.1,8.06174991]
[1765171843054,0.71,135.13,135.1,8.06174991]
[1765171843256,0.71,135.13,135.1,7.40174991]
[1765171843560,0.71,135.13,135.11,0.66]
[1765171843854,3.36454941,135.13,135.1,7.40174991]
[1765171844060,3.36454941,135.13,135.09,8.06230525]
[1765171844061,2.65454941,135.12,135.09,8.06230525]
[1765171844240,3.36454941,135.12,135.09,8.06230525]
[1765171844652,3.36454941,135.12,135.1,0.66]
[1765171844653,4.85446427,135.12,135.1,0.66]
[1765171847443,12.25488532,135.13,135.1,0.66]
[1765171847641,0.71,135.12,135.1,0.66]
[1765171848567,11.54488532,135.13,135.1,0.66]
[1765171848873,12.25488532,135.13,135.1,0.66]
[1765171849040,8.11042105,135.13,135.1,0.66]
[1765171849557,12.25415446,135.15,135.1,8.06153761]
[1765171849756,12.25415446,135.15,135.11,0.66]
[1765171849948,0.71,135.14,135.11,0.66]
[1765171850552,0.71,135.14,135.11,8.06116258]
[1765171850753,4.85446427,135.14,135.11,8.06116258]
[1765171850955,4.85446427,135.14,135.12,0.7]
[1765171851744,4.14446427,135.14,135.12,0.7]
[1765171852749,8.10969019,135.15,135.12,0.7]
[1765171852750,12.25415446,135.15,135.12,8.10082219]
[1765171852953,11.54326369,135.16,135.12,8.10082219]
[1765171853181,12.25326369,135.16,135.13,0.7]
[1765171856876,4.85446427,135.16,135.13,8.10027244]
[1765171857084,4.14446427,135.16,135.13,8.10027244]
[1765171857380,4.14446427,135.16,135.14,0.7]
[1765171857381,4.85446427,135.16,135.14,0.7]
[1765171858328,12.25276223,135.17,135.14,0.7]
[1765171858484,11.54276223,135.17,135.14,0.7]
[1765171858679,20.39217845,135.18,135.14,8.09953427]
[1765171858883,12.25217845,135.18,135.14,8.09953427]
[1765171859211,12.25217845,135.18,135.15,0.7]
[1765171860295,4.14446427,135.16,135.13,62.9]
[1765171860679,4.85446427,135.16,135.13,62.9]
[1765171861306,4.85446427,135.16,135.13,70.30026697]
[1765171861698,4.85446427,135.16,135.13,69.60026697]
[1765171862006,4.14446427,135.16,135.14,0.69]
[1765171862497,11.54268955,135.17,135.14,0.69]
[1765171862904,12.19268955,135.17,135.14,0.69]
[1765171864504,4.14446427,135.15,135.11,8.09115635]
[1765171864709,4.14446427,135.13,135.11,0.69]
[1765171865210,4.79446427,135.13,135.1,0.69]
[1765171865786,4.79446427,135.12,135.08,78.43283482]
[1765171865999,4.79446427,135.12,135.08,15.54283482]
[1765171866198,4.79446427,135.12,135.09,0.69]
[1765171866606,4.79446427,135.11,135.08,16.23283482]
[1765171866782,0.65,135.11,135.08,16.23283482]
[1765171866983,12.19561847,135.12,135.09,0.69]
[1765171867894,11.54561847,135.12,135.09,0.69]
[1765171868401,12.19561847,135.12,135.09,0.69]
[1765171870097,11.54561847,135.12,135.09,0.69]
[1765171871583,7.40015557,135.14,135.1,4.14446427]
[1765171872006,11.54388075,135.15,135.11,0.69]
[1765171872315,7.39941648,135.15,135.11,4.83446427]
[1765171872487,8.04941648,135.15,135.12,0.69]
[1765171872889,8.04941648,135.15,135.1,4.14446427]
[1765171872890,11.54388075,135.15,135.1,4.14446427]
[1765171873212,12.1943749,135.14,135.11,0.69]
[1765171875400,4.14446427,135.12,135.09,77.74227061]
[1765171875726,4.14446427,135.11,135.08,62.89]
[1765171876017,4.14446427,135.11,135.08,0.69]
[1765171876193,4.79446427,135.1,135.07,0.69]
[1765171876388,4.14446427,135.08,135.05,0.69]
[1765171876588,4.14446427,135.07,135.04,0.69]
[1765171876787,4.14446427,135.07,135.04,8.09517831]
[1765171876788,4.79446427,135.07,135.04,8.09517831]
[1765171876988,4.14446427,135.07,135.04,8.09517831]
[1765171877188,4.14446427,135.07,135.05,0.69]
[1765171877403,4.14446427,135.1,135.05,8.09460509]
[1765171877614,4.79446427,135.1,135.05,8.09460509]
[1765171877816,4.79446427,135.1,135.06,0.69]
[1765171878607,12.19647014,135.1,135.06,8.09401403]
[1765171878929,4.79446427,135.09,135.05,7.40460762]
[1765171879097,4.14446427,135.08,135.05,0.69]
[1765171879298,4.79446427,135.08,135.05,0.69]
[1765171880831,4.80446427,135.07,135.03,8.09559058]
[1765171881223,15.54330158,135.08,135.03,8.09559058]
[1765171881224,4.80446427,135.06,135.03,8.09559058]
[1765171882900,4.14446427,135.06,135.03,8.09559058]
[1765171883414,4.14446427,135.06,135.04,0.69]
[1765171885620,12.20805299,135.07,135.04,0.69]
[1765171885798,11.54805299,135.07,135.04,0.69]
[1765171890526,12.20805299,135.07,135.04,0.69]
[1765171891309,0.66,135.06,135.04,0.69]
[1765171891511,4.80446427,135.06,135.03,0.69]
[1765171891717,4.80446427,135.06,135.02,83.25048374]
[1765171892030,0.66,135.05,135.02,83.25048374]
[1765171892328,0.66,135.05,135.03,7.40559292]
[1765171892705,4.14446427,135.06,135.03,8.09559292]
[1765171893027,4.80446427,135.06,135.04,0.69]
[1765171894825,4.14446427,135.06,135.04,0.69]
[1765171895271,12.20805299,135.07,135.04,0.69]
[1765171895779,11.54805299,135.07,135.04,0.69]
[1765171895961,12.20805299,135.07,135.04,0.69]
[1765171896277,11.54805299,135.07,135.04,0.69]
[1765171896776,12.20805299,135.07,135.04,0.69]
[1765171897147,11.54805299,135.07,135.04,0.69]
[1765171898264,12.20805299,135.07,135.04,0.69]
[1765171898984,4.80446427,135.06,135.03,0.69]
[1765171899145,4.14446427,135.05,135.01,8.09662887]
[1765171899346,4.80446427,135.05,135.02,0.69]
[1765171900370,12.20930646,135.05,135.02,0.69]
[1765171901386,4.14446427,135.04,135.0,69.6072117]
[1765171901553,4.80446427,135.04,135.01,0.69]
[1765171902278,4.14446427,135.04,135.01,8.09682558]
[1765171902587,12.20930646,135.05,135.01,8.09682558]
[1765171902758,12.20930646,135.05,135.02,0.69]
[1765171903083,8.06484219,135.05,135.02,0.69]
[1765171904061,7.40484219,135.05,135.02,0.69]
[1765171905583,8.06484219,135.05,135.02,0.69]
[1765171907062,7.40484219,135.05,135.02,0.69]
[1765171907264,7.40420469,135.06,135.02,10.75121729]
[1765171907672,7.40420469,135.06,135.03,0.69]
[1765171908080,8.06420469,135.06,135.03,0.69]
[1765171908580,7.40370814,135.07,135.03,10.75085791]
[1765171908971,18.96408265,135.08,135.03,10.75085791]
[1765171908972,2.65521865,135.09,135.04,3.34521865]
[1765171909365,29.96084347,135.1,135.05,3.34521865]
[1765171909583,29.96084347,135.1,135.06,0.69]
[1765171910058,7.4027105,135.09,135.06,0.69]
[1765171910487,7.4027105,135.09,135.06,8.09410305]
[1765171911561,7.4027105,135.09,135.07,0.69]
[1765171911964,3.30521865,135.13,135.07,10.74874245]
[1765171912174,7.40082889,135.12,135.07,8.0935238]
[1765171912390,10.70604754,135.12,135.08,0.69]
[1765171914294,3.30521865,135.11,135.08,0.69]
[1765171914477,3.30521865,135.11,135.07,0.69]
[1765171914676,0.65,135.1,135.07,0.69]
[1765171914879,0.65,135.1,135.07,62.89]
[1765171915092,3.30521865,135.1,135.07,62.89]
[1765171915272,3.30521865,135.1,135.07,62.2]
[1765171915471,0.65,135.09,135.07,62.2]
[1765171916076,2.65521865,135.1,135.07,62.89]
[1765171916395,10.05729009,135.1,135.08,0.69]
[1765171916770,10.05729009,135.1,135.07,62.89]
[1765171916771,10.70729009,135.1,135.07,62.89]
[1765171916978,10.05729009,135.1,135.07,62.2]
[1765171917194,0.65,135.09,135.07,62.89]
[1765171917385,8.05259815,135.09,135.07,62.2]
[1765171918280,8.05259815,135.09,135.07,62.89]
[1765171918782,8.05259815,135.09,135.07,62.2]
[1765171918992,7.40259815,135.09,135.07,62.2]
[1765171919199,0.65,135.08,135.07,62.2]
[1765171919370,0.65,135.08,135.05,62.2]
[1765171919569,0.65,135.08,135.05,62.89]
[1765171920070,10.0578168,135.09,135.05,69.60451207]
[1765171920295,8.05259815,135.09,135.06,0.69]
[1765171920473,0.65,135.08,135.05,0.69]
[1765171920872,10.70852062,135.08,135.04,62.2]
[1765171921100,10.70852062,135.08,135.04,0.69]
[1765171921395,0.65,135.07,135.04,0.69]
[1765171922005,10.76852062,135.08,135.04,0.69]
[1765171922802,8.11330197,135.08,135.04,8.09521264]
[1765171923105,10.76852062,135.08,135.04,8.09521264]
[1765171923310,0.71,135.07,135.04,0.67]
[1765171923467,2.65521865,135.05,135.02,62.87]
[1765171923671,2.65521865,135.05,135.02,0.67]
[1765171923909,3.36521865,135.05,135.02,0.67]
[1765171924495,3.36521865,135.06,135.02,8.0762724]
[1765171925174,0.71,135.05,135.02,0.67]
[1765171926691,2.65521865,135.05,135.02,8.07630304]
[1765171927099,10.76977442,135.06,135.02,8.07630304]
[1765171927277,10.76977442,135.06,135.03,0.67]
[1765171930103,19.21692944,135.09,135.03,3.32521865]
[1765171930401,19.21692944,135.09,135.05,10.05985589]
[1765171930402,7.40263947,135.09,135.05,10.05985589]
[1765171930775,8.11263947,135.09,135.06,0.67]
[1765171932498,10.76785812,135.09,135.06,0.67]
[1765171932995,3.36521865,135.08,135.05,0.67]
[1765171934507,10.76827346,135.08,135.05,0.67]
[1765171936004,3.36521865,135.07,135.04,62.87]
[1765171936202,2.65521865,135.07,135.05,0.67]
[1765171936783,10.76735809,135.1,135.05,8.07465492]
[1765171937113,10.05735809,135.1,135.05,72.92987357]
[1765171937296,10.05735809,135.1,135.06,0.67]
[1765171937497,7.40213944,135.1,135.06,3.32521865]
[1765171937694,8.11213944,135.1,135.07,0.67]
[1765171939396,10.76735809,135.1,135.07,0.67]
[1765171942314,3.31521865,135.09,135.05,70.31447686]
[1765171942523,2.65521865,135.08,135.05,62.91]
[1765171942708,3.31521865,135.08,135.05,62.91]
[1765171942909,0.66,135.07,135.05,62.2]
[1765171943119,3.31521865,135.07,135.05,62.2]
[1765171943307,3.31521865,135.07,135.05,62.91]
[1765171944208,10.71895273,135.07,135.05,62.91]
[1765171944415,10.71895273,135.07,135.05,62.2]
[1765171945908,10.71895273,135.07,135.05,62.91]
[1765171946109,10.05895273,135.07,135.05,62.91]
[1765171946803,10.05895273,135.07,135.05,0.71]
[1765171947724,15.54249362,135.09,135.05,10.76981818]
[1765171948318,16.20249362,135.09,135.06,0.71]
[1765171950432,3.31521865,135.08,135.04,8.11507642]
[1765171950804,3.31521865,135.08,135.05,0.71]
[1765171952407,10.71832066,135.08,135.05,0.71]
[1765171953726,10.05832066,135.08,135.05,0.71]
[1765171954038,10.71832066,135.08,135.05,0.71]
[1765171954333,2.65521865,135.07,135.04,69.60507642]
[1765171954630,2.65521865,135.07,135.01,7.40653335]
[1765171954631,2.65521865,135.05,135.01,7.40653335]
[1765171954831,2.65521865,135.05,135.02,0.71]
[1765171955131,3.31521865,135.05,135.02,0.71]
[1765171955512,2.65521865,135.05,135.0,10.06242218]
[1765171955820,3.31521865,135.04,135.0,0.71]
[1765171956326,0.66,135.03,135.0,0.71]
[1765171956728,2.65521865,135.04,135.0,8.11729142]
[1765171956729,8.06532084,135.04,135.0,8.11729142]
[1765171956931,7.40532084,135.04,135.0,8.11729142]
[1765171957121,7.40532084,135.04,135.01,0.71]
[1765171957522,8.06532084,135.04,135.01,0.71]
[1765171957938,7.40532084,135.04,135.01,0.71]
[1765171958739,7.40532084,135.04,135.01,8.11683241]
[1765171958932,8.06486216,135.05,135.01,8.11683241]
[1765171959239,16.20486216,135.05,135.02,0.71]
[1765171963938,15.54486216,135.05,135.02,0.71]
[1765171964317,16.20486216,135.05,135.02,0.71]
[1765171964510,7.40378898,135.07,135.03,2.65521865]
[1765171964930,7.40378898,135.07,135.04,0.71]
[1765171965217,10.05834594,135.08,135.04,0.71]
[1765171965813,10.71834594,135.08,135.04,0.71]
[1765171966119,10.71834594,135.08,135.04,8.11511843]
[1765171966346,10.71834594,135.08,135.05,0.71]
[1765171966840,12.21043382,135.08,135.05,0.71]
[1765171969017,11.54977895,135.09,135.05,8.11458596]
[1765171969327,12.20977895,135.09,135.05,8.11458596]
[1765171969526,12.20977895,135.09,135.06,0.71]
[1765171969842,7.40247242,135.09,135.06,0.71]
[1765171972253,11.54977895,135.09,135.06,0.71]
[1765171972463,12.23977895,135.09,135.06,0.71]
[1765171975146,4.14730653,135.08,135.06,0.71]
[1765171975348,4.14730653,135.08,135.04,7.40519774]
[1765171975349,4.14730653,135.07,135.04,8.08519774]
[1765171975527,0.69,135.08,135.04,8.08519774]
[1765171975528,4.83730653,135.08,135.05,0.68]
[1765171975854,4.14730653,135.08,135.05,0.68]
[1765171976345,11.55068266,135.08,135.05,0.68]
[1765171976841,19.69068266,135.08,135.05,0.68]
[1765171977042,20.38068266,135.08,135.05,0.68]
[1765171978131,19.69068266,135.08,135.05,0.68]
[1765171978336,20.35068266,135.08,135.05,0.68]
[1765171978541,0.66,135.07,135.05,0.68]
[1765171978865,0.66,135.07,135.04,0.69]
[1765171980356,12.2112794,135.07,135.03,69.60555688]
[1765171980528,11.5512794,135.07,135.04,0.69]
[1765171980734,19.6912794,135.07,135.04,0.69]
[1765171981049,8.14,135.07,135.04,8.09516614]
[1765171981378,8.14,135.07,135.05,0.69]
[1765171983848,7.40317943,135.08,135.05,0.69]
[1765171984156,4.80730653,135.12,135.06,4.14730653]
[1765171984361,8.14,135.11,135.06,66.34730653]
[1765171984555,8.14,135.11,135.07,0.69]
[1765171984969,8.06099377,135.12,135.07,4.83730653]
[1765171985172,7.40099377,135.12,135.07,4.83730653]
[1765171985347,7.40099377,135.12,135.08,0.69]
[1765171985874,8.06099377,135.12,135.08,0.69]
[1765171986381,8.06099377,135.12,135.08,12.24010418]
[1765171986858,8.06099377,135.12,135.09,0.69]
[1765171987058,0.66,135.11,135.07,69.6033676]
[1765171987262,4.80730653,135.11,135.07,70.2933676]
[1765171987442,4.14730653,135.1,135.07,62.2]
[1765171987648,4.14730653,135.09,135.07,62.2]
[1765171987859,4.14730653,135.08,135.04,62.89]
[1765171988071,4.14730653,135.07,135.04,0.69]
[1765171988371,4.14730653,135.07,135.03,89.52377236]
[1765171988372,4.14730653,135.06,135.03,8.09557292]
[1765171988541,4.80730653,135.06,135.03,8.09557292]
[1765171988735,4.14730653,135.06,135.03,8.09557292]
[1765171989072,4.14730653,135.05,135.03,0.69]
[1765171989459,12.21149055,135.06,135.03,0.69]
[1765171993178,11.55149055,135.06,135.02,7.40609885]
[1765171993480,12.21149055,135.06,135.03,0.69]
[1765171994979,4.80730653,135.05,135.02,69.60609885]
[1765171995278,12.21215518,135.05,135.02,62.89]
[1765172000280,12.21215518,135.05,135.02,0.69]
[1765172001882,12.21215518,135.05,135.02,8.09629576]
[1765172002179,0.66,135.05,135.02,7.40629576]
[1765172002372,11.55162122,135.06,135.02,7.40629576]
[1765172002373,12.96730653,135.09,135.03,4.86730653]
[1765172002676,20.36999931,135.09,135.04,7.40521327]
[1765172002880,20.36999931,135.09,135.04,8.12521327]
[1765172003082,0.68,135.08,135.05,0.72]
[1765172005478,0.68,135.08,135.05,8.12455028]
[1765172006079,8.08305347,135.08,135.05,0.72]
[1765172007763,16.22305347,135.08,135.05,0.72]
[1765172009088,8.08305347,135.08,135.05,0.72]
[1765172009595,19.6900216,135.09,135.05,8.12465804]